{"text_format":"3","workbook":"xlsx","n_sheets":2,"sheets":["Aloitus","Joulubudjetin suunnittelu"],"not_rendered":{"defined_names":1},"read":"whole","date_system":"1900"}

{"sheet":"Aloitus","index":0,"n_rows":4,"n_cols":2,"rows_kept":4}
[null,"Tämän mallin käyttäminen"]
[null,"Seuraa kulujasi tämän joulubudjetin suunnittelutaulukon avulla."]
[null,"Aloita syöttämällä budjetti ja todelliset kulut kuhunkin luokkataulukkoon."]
[null,"Joulubudjetti, käytetty kokonaissumma ja erotus lasketaan automaattisesti puolestasi."]

{"sheet":"Joulubudjetin suunnittelu","index":1,"n_rows":36,"n_cols":14,"rows_kept":36,"merged":[[0,2,5,7],[2,10,2,11],[8,2,8,5],[8,10,8,13],[18,2,18,5],[18,10,18,13],[29,2,29,5],[29,10,29,13]]}
[null,null,"Joulubudjetin \nsuunnittelu"]
[]
[{"$nulls":10},"JOULUBUDJETTI",null,null,{"$f":"SUM(Lahjat[Budjetti],Paketointi[Budjetti],(Matkustus[Budjetti],(Ateriat[Budjetti],(Viihde[Budjetti],Sekalaiset[Budjetti]))))","v":{"v":750,"d":"750.00 €"}}]
[{"$nulls":10},"TODELLINEN KULUTETTU",null,null,{"$f":"SUM((Lahjat[Todellinen],(Paketointi[Todellinen],(Matkustus[Todellinen],(Ateriat[Todellinen],(Viihde[Todellinen],(Sekalaiset[Todellinen])))))))","v":{"v":820,"d":"820.00 €"}}]
[]
[{"$nulls":10},"EROTUS (yli/alle budjetin)",null,null,{"$f":"SUM(N3-N4)","v":{"v":-70,"d":"-70.00 €"}}]
[]
[]
[null,null,"LAHJAT",{"$nulls":7},"JOULUATERIAT"]
[null,null,"Tuote","Budjetti","Todellinen","Erotus",{"$nulls":4},"Tuote","Budjetti","Todellinen","Erotus"]
[null,null,"Perhe",{"v":500,"d":"500.00 €"},{"v":495,"d":"495.00 €"},{"$f":"Lahjat[[#This Row],[Budjetti]]-Lahjat[[#This Row],[Todellinen]]","v":{"v":5,"d":"5.00 €"}},{"$nulls":4},"Ruokatarvikkeet",null,null,{"$f":"Ateriat[[#This Row],[Budjetti]]-Ateriat[[#This Row],[Todellinen]]","v":{"v":0,"d":"0.00 €"}}]
[null,null,"Ystävät",{"v":250,"d":"250.00 €"},{"v":325,"d":"325.00 €"},{"$f":"Lahjat[[#This Row],[Budjetti]]-Lahjat[[#This Row],[Todellinen]]","v":{"v":-75,"d":"-75.00 €"}},{"$nulls":4},"Juomauhrit",null,null,{"$f":"Ateriat[[#This Row],[Budjetti]]-Ateriat[[#This Row],[Todellinen]]","v":{"v":0,"d":"0.00 €"}}]
[null,null,"Työtoverit",null,null,{"$f":"Lahjat[[#This Row],[Budjetti]]-Lahjat[[#This Row],[Todellinen]]","v":{"v":0,"d":"0.00 €"}},{"$nulls":4},"Koristeet",null,null,{"$f":"Ateriat[[#This Row],[Budjetti]]-Ateriat[[#This Row],[Todellinen]]","v":{"v":0,"d":"0.00 €"}}]
[null,null,"Opettajat, lastenhoitajat, lastenvahdit yms.",null,null,{"$f":"Lahjat[[#This Row],[Budjetti]]-Lahjat[[#This Row],[Todellinen]]","v":{"v":0,"d":"0.00 €"}},{"$nulls":4},"Muut (jos haluat lisätä rivin, siirry sarkaimella tämän rivin viimeiseen sarakkeeseen)",null,null,{"$f":"Ateriat[[#This Row],[Budjetti]]-Ateriat[[#This Row],[Todellinen]]","v":{"v":0,"d":"0.00 €"}}]
[null,null,"Hyväntekeväisyyslahjoitukset",null,null,{"$f":"Lahjat[[#This Row],[Budjetti]]-Lahjat[[#This Row],[Todellinen]]","v":{"v":0,"d":"0.00 €"}},{"$nulls":7},{"$f":"Ateriat[[#This Row],[Budjetti]]-Ateriat[[#This Row],[Todellinen]]","v":{"v":0,"d":"0.00 €"}}]
[null,null,"Muut (jos haluat lisätä rivin, siirry sarkaimella tämän rivin viimeiseen sarakkeeseen)",null,null,{"$f":"Lahjat[[#This Row],[Budjetti]]-Lahjat[[#This Row],[Todellinen]]","v":{"v":0,"d":"0.00 €"}}]
[null,null,"Summa",{"$f":"SUBTOTAL(109,Lahjat[Budjetti])","v":{"v":750,"d":"750.00 €"}},{"$f":"SUBTOTAL(109,Lahjat[Todellinen])","v":{"v":820,"d":"820.00 €"}},{"$f":"SUBTOTAL(109,Lahjat[Erotus])","v":{"v":-70,"d":"-70.00 €"}},{"$nulls":4},"Summa",{"$f":"SUBTOTAL(109,Ateriat[Budjetti])","v":{"v":0,"d":"0.00 €"}},{"$f":"SUBTOTAL(109,Ateriat[Todellinen])","v":{"v":0,"d":"0.00 €"}},{"$f":"SUBTOTAL(109,Ateriat[Erotus])","v":{"v":0,"d":"0.00 €"}}]
[]
[null,null,"PAKETOINTI",{"$nulls":7},"OHJELMA"]
[null,null,"Tuote","Budjetti","Todellinen","Erotus",{"$nulls":4},"Tuote","Budjetti","Todellinen","Erotus"]
[null,null,"Lahjapaperi",null,null,{"$f":"Paketointi[[#This Row],[Budjetti]]-Paketointi[[#This Row],[Todellinen]]","v":{"v":0,"d":"0.00 €"}},{"$nulls":4},"Juhla-apu (baarimikko, pitopalvelu, siivoojat yms.)",null,null,{"$f":"Viihde[[#This Row],[Budjetti]]-Viihde[[#This Row],[Todellinen]]","v":{"v":0,"d":"0.00 €"}}]
[null,null,"Lipukkeet",null,null,{"$f":"Paketointi[[#This Row],[Budjetti]]-Paketointi[[#This Row],[Todellinen]]","v":{"v":0,"d":"0.00 €"}},{"$nulls":4},"Koristeet",null,null,{"$f":"Viihde[[#This Row],[Budjetti]]-Viihde[[#This Row],[Todellinen]]","v":{"v":0,"d":"0.00 €"}}]
[null,null,"Tarvikkeet (nauha, teippi yms.)",null,null,{"$f":"Paketointi[[#This Row],[Budjetti]]-Paketointi[[#This Row],[Todellinen]]","v":{"v":0,"d":"0.00 €"}},{"$nulls":4},"Ruoka ja juoma",null,null,{"$f":"Viihde[[#This Row],[Budjetti]]-Viihde[[#This Row],[Todellinen]]","v":{"v":0,"d":"0.00 €"}}]
[null,null,"Laatikot",null,null,{"$f":"Paketointi[[#This Row],[Budjetti]]-Paketointi[[#This Row],[Todellinen]]","v":{"v":0,"d":"0.00 €"}},{"$nulls":4},"Vaatteet",null,null,{"$f":"Viihde[[#This Row],[Budjetti]]-Viihde[[#This Row],[Todellinen]]","v":{"v":0,"d":"0.00 €"}}]
[null,null,"Postimaksut",null,null,{"$f":"Paketointi[[#This Row],[Budjetti]]-Paketointi[[#This Row],[Todellinen]]","v":{"v":0,"d":"0.00 €"}},{"$nulls":4},"Liput",null,null,{"$f":"Viihde[[#This Row],[Budjetti]]-Viihde[[#This Row],[Todellinen]]","v":{"v":0,"d":"0.00 €"}}]
[null,null,"Muut (jos haluat lisätä rivin, siirry sarkaimella tämän rivin viimeiseen sarakkeeseen)",null,null,{"$f":"Paketointi[[#This Row],[Budjetti]]-Paketointi[[#This Row],[Todellinen]]","v":{"v":0,"d":"0.00 €"}},{"$nulls":4},"Ravintolapäivälliset",null,null,{"$f":"Viihde[[#This Row],[Budjetti]]-Viihde[[#This Row],[Todellinen]]","v":{"v":0,"d":"0.00 €"}}]
[{"$nulls":10},"Muut (jos haluat lisätä rivin, siirry sarkaimella tämän rivin viimeiseen sarakkeeseen)",null,null,{"$f":"Viihde[[#This Row],[Budjetti]]-Viihde[[#This Row],[Todellinen]]","v":{"v":0,"d":"0.00 €"}}]
[null,null,"Summa",{"$f":"SUBTOTAL(109,Paketointi[Budjetti])","v":{"v":0,"d":"0.00 €"}},{"$f":"SUBTOTAL(109,Paketointi[Todellinen])","v":{"v":0,"d":"0.00 €"}},{"$f":"SUBTOTAL(109,Paketointi[Erotus])","v":{"v":0,"d":"0.00 €"}},{"$nulls":4},"Summa",{"$f":"SUBTOTAL(109,Viihde[Budjetti])","v":{"v":0,"d":"0.00 €"}},{"$f":"SUBTOTAL(109,Viihde[Todellinen])","v":{"v":0,"d":"0.00 €"}},{"$f":"SUBTOTAL(109,Viihde[Erotus])","v":{"v":0,"d":"0.00 €"}}]
[]
[null,null,"MATKUSTUS",{"$nulls":7},"MUUT"]
[null,null,"Tuote","Budjetti","Todellinen","Erotus",{"$nulls":4},"Tuote","Budjetti","Todellinen","Erotus"]
[null,null,"Lentomatkat",null,null,{"$f":"Matkustus[[#This Row],[Budjetti]]-Matkustus[[#This Row],[Todellinen]]","v":{"v":0,"d":"0.00 €"}},{"$nulls":4},"Lomavalokuvat",null,null,{"$f":"Sekalaiset[[#This Row],[Budjetti]]-Sekalaiset[[#This Row],[Todellinen]]","v":{"v":0,"d":"0.00 €"}}]
[null,null,"Majoitus",null,null,{"$f":"Matkustus[[#This Row],[Budjetti]]-Matkustus[[#This Row],[Todellinen]]","v":{"v":0,"d":"0.00 €"}},{"$nulls":4},"Polttoaine ",null,null,{"$f":"Sekalaiset[[#This Row],[Budjetti]]-Sekalaiset[[#This Row],[Todellinen]]","v":{"v":0,"d":"0.00 €"}}]
[null,null,"Liikkuminen",null,null,{"$f":"Matkustus[[#This Row],[Budjetti]]-Matkustus[[#This Row],[Todellinen]]","v":{"v":0,"d":"0.00 €"}},{"$nulls":4},"Muut (jos haluat lisätä rivin, siirry sarkaimella tämän rivin viimeiseen sarakkeeseen)",null,null,{"$f":"Sekalaiset[[#This Row],[Budjetti]]-Sekalaiset[[#This Row],[Todellinen]]","v":{"v":0,"d":"0.00 €"}}]
[null,null,"Muut (jos haluat lisätä rivin, siirry sarkaimella tämän rivin viimeiseen sarakkeeseen)",null,null,{"$f":"Matkustus[[#This Row],[Budjetti]]-Matkustus[[#This Row],[Todellinen]]","v":{"v":0,"d":"0.00 €"}}]
[null,null,"Summa",{"$f":"SUBTOTAL(109,Matkustus[Budjetti])","v":{"v":0,"d":"0.00 €"}},{"$f":"SUBTOTAL(109,Matkustus[Todellinen])","v":{"v":0,"d":"0.00 €"}},{"$f":"SUBTOTAL(109,Matkustus[Erotus])","v":{"v":0,"d":"0.00 €"}},{"$nulls":4},"Summa",{"$f":"SUBTOTAL(109,Sekalaiset[Budjetti])","v":{"v":0,"d":"0.00 €"}},{"$f":"SUBTOTAL(109,Sekalaiset[Todellinen])","v":{"v":0,"d":"0.00 €"}},{"$f":"SUBTOTAL(109,Sekalaiset[Erotus])","v":{"v":0,"d":"0.00 €"}}]